[Event "Titled Tuesday Blitz January 17 Early 2023"]
[White "Lewtak, Damian"]
[Black "Mihailidis, Anastasios"]
[WhiteFideId "1141724"]
[BlackFideId "4205588"]
[WhiteElo "2381"]
[BlackElo "2208"]
[Result "1-0"]
[Round "01"]
[TimeControl "180+2"]
[Date "2023.01.17"]
[WhiteClock "0:00:10"]
[BlackClock "0:00:15"]

1. f4 {[%clk 0:03:00]}  d5 {[%clk 0:02:59]} 2. Nf3 {[%clk 0:03:00]}  c5 {[%clk 0:02:58]} 3. b3 {[%clk 0:03:01]}  Nf6 {[%clk 0:02:57]} 4. Bb2 {[%clk 0:03:00]}  e6 {[%clk 0:02:57]} 5. e3 {[%clk 0:03:01]}  Be7 {[%clk 0:02:57]} 6. Bb5+ {[%clk 0:03:01]}  Bd7 {[%clk 0:02:57]} 7. Bxd7+ {[%clk 0:03:00]}  Nbxd7 {[%clk 0:02:54]} 8. O-O {[%clk 0:03:01]}  O-O {[%clk 0:02:53]} 9. d3 {[%clk 0:03:02]}  Qc7 {[%clk 0:02:51]} 10. Nbd2 {[%clk 0:03:01]}  Bd6 {[%clk 0:02:52]} 11. Qe2 {[%clk 0:02:58]}  e5 {[%clk 0:02:51]} 12. fxe5 {[%clk 0:02:52]}  Nxe5 {[%clk 0:02:51]} 13. Rae1 {[%clk 0:02:50]}  Rae8 {[%clk 0:02:49]} 14. e4 {[%clk 0:02:40]}  dxe4 {[%clk 0:02:45]} 15. dxe4 {[%clk 0:02:21]}  Neg4 {[%clk 0:02:06]} 16. h3 {[%clk 0:02:15]}  Bh2+ {[%clk 0:02:06]} 17. Kh1 {[%clk 0:02:14]}  Nh5 {[%clk 0:02:06]} 18. hxg4 {[%clk 0:01:57]}  Ng3+ {[%clk 0:02:05]} 19. Kxh2 {[%clk 0:01:58]}  Nxe2+ {[%clk 0:02:04]} 20. Kh1 {[%clk 0:01:57]}  Ng3+ {[%clk 0:02:03]} 21. Kg1 {[%clk 0:01:57]}  Nxf1 {[%clk 0:02:03]} 22. Kxf1 {[%clk 0:01:57]}  Re6 {[%clk 0:01:58]} 23. Kf2 {[%clk 0:01:54]}  Qf4 {[%clk 0:01:56]} 24. g5 {[%clk 0:01:48]}  Rg6 {[%clk 0:01:53]} 25. Nc4 {[%clk 0:01:45]}  Rxg5 {[%clk 0:01:48]} 26. Rg1 {[%clk 0:01:27]}  Qg3+ {[%clk 0:01:41]} 27. Ke3 {[%clk 0:01:23]}  Rh5 {[%clk 0:01:34]} 28. Bc3 {[%clk 0:01:13]}  b5 {[%clk 0:01:31]} 29. Ne5 {[%clk 0:01:11]}  Re8 {[%clk 0:01:26]} 30. Be1 {[%clk 0:01:11]}  Rhxe5 {[%clk 0:00:58]} 31. Bxg3 {[%clk 0:01:09]}  Rxe4+ {[%clk 0:00:59]} 32. Kd2 {[%clk 0:01:04]}  Re2+ {[%clk 0:00:59]} 33. Kd1 {[%clk 0:01:01]}  a5 {[%clk 0:00:52]} 34. Be1 {[%clk 0:01:00]}  a4 {[%clk 0:00:46]} 35. Bd2 {[%clk 0:00:56]}  axb3 {[%clk 0:00:45]} 36. axb3 {[%clk 0:00:53]}  c4 {[%clk 0:00:37]} 37. bxc4 {[%clk 0:00:49]}  bxc4 {[%clk 0:00:37]} 38. Kc1 {[%clk 0:00:49]}  Rf2 {[%clk 0:00:33]} 39. Be1 {[%clk 0:00:45]}  Rfe2 {[%clk 0:00:31]} 40. Kb2 {[%clk 0:00:35]}  Rb8+ {[%clk 0:00:25]} 41. Kc3 {[%clk 0:00:32]}  Re3+ {[%clk 0:00:23]} 42. Kxc4 {[%clk 0:00:25]}  Rc8+ {[%clk 0:00:24]} 43. Kd4 {[%clk 0:00:25]}  Re6 {[%clk 0:00:21]} 44. c3 {[%clk 0:00:16]}  Rd8+ {[%clk 0:00:21]} 45. Kc4 {[%clk 0:00:16]}  Rc6+ {[%clk 0:00:21]} 46. Kb3 {[%clk 0:00:16]}  Rd1 {[%clk 0:00:20]} 47. Bf2 {[%clk 0:00:07]}  Rd3 {[%clk 0:00:20]} 48. Bd4 {[%clk 0:00:07]}  f6 {[%clk 0:00:19]} 49. Kc2 {[%clk 0:00:07]}  Rxd4 {[%clk 0:00:15]} 50. Nxd4 {[%clk 0:00:08]}  Rd6 {[%clk 0:00:14]} 51. Kd3 {[%clk 0:00:08]}  Kf7 {[%clk 0:00:15]} 52. c4 {[%clk 0:00:09]}  Ra6 {[%clk 0:00:15]} 53. c5 {[%clk 0:00:09]}  Ra3+ {[%clk 0:00:16]} 54. Kc4 {[%clk 0:00:09]}  Ke7 {[%clk 0:00:16]} 55. Kd5 {[%clk 0:00:10]}  Ra5 {[%clk 0:00:15]} 56. Nc6+ {[%clk 0:00:10]} 1-0


[Site "https://www.chess.com"]

[Event "Titled Tuesday Blitz January 17 Early 2023"]
[White "Subelj, Jan"]
[Black "Xie, Bryan"]
[WhiteFideId "14618583"]
[BlackFideId "30941296"]
[WhiteElo "2513"]
[BlackElo "2361"]
[Result "1-0"]
[Round "01"]
[TimeControl "180+2"]
[Date "2023.01.17"]
[WhiteClock "0:00:28"]
[BlackClock "0:00:04"]

1. b3 {[%clk 0:02:56]}  d6 {[%clk 0:02:48]} 2. Bb2 {[%clk 0:02:54]}  e5 {[%clk 0:02:48]} 3. e4 {[%clk 0:02:54]}  Nc6 {[%clk 0:02:45]} 4. Nf3 {[%clk 0:02:51]}  Nf6 {[%clk 0:02:42]} 5. Nc3 {[%clk 0:02:51]}  Be7 {[%clk 0:02:40]} 6. d4 {[%clk 0:02:50]}  Bg4 {[%clk 0:02:34]} 7. Bb5 {[%clk 0:02:46]}  exd4 {[%clk 0:02:15]} 8. Qxd4 {[%clk 0:02:45]}  O-O {[%clk 0:02:14]} 9. Qe3 {[%clk 0:02:17]}  Re8 {[%clk 0:02:04]} 10. O-O-O {[%clk 0:02:13]}  a6 {[%clk 0:02:02]} 11. Be2 {[%clk 0:01:58]}  Nd7 {[%clk 0:01:54]} 12. Kb1 {[%clk 0:01:55]}  Bf6 {[%clk 0:01:09]} 13. h3 {[%clk 0:01:48]}  Bh5 {[%clk 0:01:06]} 14. g4 {[%clk 0:01:44]}  Bg6 {[%clk 0:01:04]} 15. g5 {[%clk 0:01:42]}  Bxc3 {[%clk 0:01:02]} 16. Qxc3 {[%clk 0:01:42]}  Nce5 {[%clk 0:00:55]} 17. Nxe5 {[%clk 0:01:29]}  dxe5 {[%clk 0:00:53]} 18. Bg4 {[%clk 0:01:27]}  Re7 {[%clk 0:00:30]} 19. Qd3 {[%clk 0:00:46]}  Qf8 {[%clk 0:00:16]} 20. Bxd7 {[%clk 0:00:45]}  Rd8 {[%clk 0:00:16]} 21. Ba3 {[%clk 0:00:46]}  Rexd7 {[%clk 0:00:13]} 22. Bxf8 {[%clk 0:00:44]}  Rxd3 {[%clk 0:00:12]} 23. Rxd3 {[%clk 0:00:44]}  Rxd3 {[%clk 0:00:12]} 24. cxd3 {[%clk 0:00:44]}  Kxf8 {[%clk 0:00:12]} 25. Rc1 {[%clk 0:00:43]}  c6 {[%clk 0:00:09]} 26. Kc2 {[%clk 0:00:43]}  Ke7 {[%clk 0:00:09]} 27. Kd2 {[%clk 0:00:43]}  Kd6 {[%clk 0:00:10]} 28. Ke3 {[%clk 0:00:43]}  f6 {[%clk 0:00:09]} 29. h4 {[%clk 0:00:42]}  fxg5 {[%clk 0:00:07]} 30. hxg5 {[%clk 0:00:42]}  Bf7 {[%clk 0:00:07]} 31. Rh1 {[%clk 0:00:40]}  Bg8 {[%clk 0:00:08]} 32. f4 {[%clk 0:00:39]}  exf4+ {[%clk 0:00:06]} 33. Kxf4 {[%clk 0:00:40]}  a5 {[%clk 0:00:06]} 34. d4 {[%clk 0:00:39]}  b5 {[%clk 0:00:05]} 35. g6 {[%clk 0:00:37]}  hxg6 {[%clk 0:00:04]} 36. Rh8 {[%clk 0:00:35]}  Bf7 {[%clk 0:00:04]} 37. Rd8+ {[%clk 0:00:34]}  Kc7 {[%clk 0:00:03]} 38. Rf8 {[%clk 0:00:33]}  Be6 {[%clk 0:00:03]} 39. Ke5 {[%clk 0:00:31]}  Kd7 {[%clk 0:00:03]} 40. Ra8 {[%clk 0:00:28]}  Bg8 {[%clk 0:00:04]} 41. Rxg8 {[%clk 0:00:28]}  a4 {[%clk 0:00:04]} 42. Rxg7+ {[%clk 0:00:28]} 1-0


[Site "https://www.chess.com"]

[Event "Titled Tuesday Blitz January 17 Early 2023"]
[White "Matveeva, Olga"]
[Black "Atakhan, Abtin"]
[WhiteFideId "24107018"]
[BlackFideId "22502203"]
[WhiteElo "2128"]
[BlackElo "2422"]
[Result "0-1"]
[Round "01"]
[TimeControl "180+2"]
[Date "2023.01.17"]
[WhiteClock "0:00:01"]
[BlackClock "0:00:50"]

1. d4 {[%clk 0:02:59]}  Nf6 {[%clk 0:02:59]} 2. c4 {[%clk 0:02:59]}  g6 {[%clk 0:02:57]} 3. g3 {[%clk 0:02:59]}  Bg7 {[%clk 0:02:58]} 4. Nf3 {[%clk 0:03:00]}  O-O {[%clk 0:02:58]} 5. Bg2 {[%clk 0:03:00]}  d6 {[%clk 0:02:59]} 6. O-O {[%clk 0:03:01]}  c6 {[%clk 0:03:00]} 7. Nc3 {[%clk 0:03:01]}  Bf5 {[%clk 0:03:01]} 8. Ne1 {[%clk 0:02:48]}  Qd7 {[%clk 0:02:58]} 9. e4 {[%clk 0:02:44]}  Bh3 {[%clk 0:02:58]} 10. f3 {[%clk 0:02:39]}  Bxg2 {[%clk 0:02:54]} 11. Kxg2 {[%clk 0:02:35]}  e5 {[%clk 0:02:55]} 12. d5 {[%clk 0:02:34]}  cxd5 {[%clk 0:02:55]} 13. cxd5 {[%clk 0:02:32]}  Na6 {[%clk 0:02:54]} 14. Nd3 {[%clk 0:02:31]}  Rfc8 {[%clk 0:02:52]} 15. Be3 {[%clk 0:02:30]}  Nc7 {[%clk 0:02:49]} 16. a4 {[%clk 0:02:25]}  Na6 {[%clk 0:02:35]} 17. Rc1 {[%clk 0:02:23]}  Nc5 {[%clk 0:02:30]} 18. Bxc5 {[%clk 0:02:17]}  dxc5 {[%clk 0:02:30]} 19. Nxe5 {[%clk 0:02:17]}  Qe8 {[%clk 0:02:29]} 20. Nd3 {[%clk 0:02:15]}  Nd7 {[%clk 0:02:25]} 21. Re1 {[%clk 0:02:07]}  a6 {[%clk 0:02:26]} 22. a5 {[%clk 0:02:03]}  Rab8 {[%clk 0:02:26]} 23. Na4 {[%clk 0:01:59]}  Qd8 {[%clk 0:02:21]} 24. Qd2 {[%clk 0:01:52]}  c4 {[%clk 0:02:21]} 25. Nf4 {[%clk 0:01:43]}  Ne5 {[%clk 0:02:21]} 26. Nb6 {[%clk 0:01:41]}  Rc5 {[%clk 0:02:21]} 27. b4 {[%clk 0:01:33]}  Rc7 {[%clk 0:02:14]} 28. Red1 {[%clk 0:01:27]}  c3 {[%clk 0:02:11]} 29. Rxc3 {[%clk 0:01:15]}  Rxc3 {[%clk 0:02:09]} 30. Qxc3 {[%clk 0:01:16]}  Qe8 {[%clk 0:02:07]} 31. Qc7 {[%clk 0:01:06]}  Rd8 {[%clk 0:01:59]} 32. d6 {[%clk 0:00:56]}  Nc6 {[%clk 0:01:59]} 33. Qxb7 {[%clk 0:00:46]}  Nxb4 {[%clk 0:02:00]} 34. d7 {[%clk 0:00:44]}  Qe7 {[%clk 0:01:59]} 35. Nbd5 {[%clk 0:00:29]}  Nxd5 {[%clk 0:01:59]} 36. Nxd5 {[%clk 0:00:29]}  Qe5 {[%clk 0:01:45]} 37. Qb6 {[%clk 0:00:22]}  Rxd7 {[%clk 0:01:35]} 38. Nf6+ {[%clk 0:00:22]}  Bxf6 {[%clk 0:01:34]} 39. Rxd7 {[%clk 0:00:22]}  Be7 {[%clk 0:01:30]} 40. Rd2 {[%clk 0:00:20]}  Qc3 {[%clk 0:01:24]} 41. Rb2 {[%clk 0:00:17]}  Bc5 {[%clk 0:01:23]} 42. Qb8+ {[%clk 0:00:16]}  Kg7 {[%clk 0:01:24]} 43. Qb3 {[%clk 0:00:15]}  Qd4 {[%clk 0:01:23]} 44. Rc2 {[%clk 0:00:14]}  Qg1+ {[%clk 0:01:22]} 45. Kh3 {[%clk 0:00:14]}  Qf1+ {[%clk 0:01:23]} 46. Kh4 {[%clk 0:00:12]}  Be7+ {[%clk 0:01:23]} 47. Kg4 {[%clk 0:00:12]}  h5+ {[%clk 0:01:23]} 48. Kf4 {[%clk 0:00:12]}  Bf6 {[%clk 0:01:13]} 49. Qc4 {[%clk 0:00:10]}  Qa1 {[%clk 0:01:03]} 50. Ke3 {[%clk 0:00:06]}  Qxa5 {[%clk 0:01:03]} 51. Kf2 {[%clk 0:00:04]}  Qb6+ {[%clk 0:01:02]} 52. Kg2 {[%clk 0:00:04]}  a5 {[%clk 0:01:03]} 53. f4 {[%clk 0:00:03]}  Bd4 {[%clk 0:00:58]} 54. e5 {[%clk 0:00:03]}  Qb1 {[%clk 0:00:51]} 55. Kf3 {[%clk 0:00:01]}  Qh1+ {[%clk 0:00:50]} 0-1


[Site "https://www.chess.com"]

[Event "Titled Tuesday Blitz January 17 Early 2023"]
[White "Hoffmann, Asa"]
[Black "Ordekalog"]
[WhiteFideId "2001470"]
[WhiteElo "2185"]
[BlackElo "2578"]
[Result "1-0"]
[Round "01"]
[TimeControl "180+2"]
[Date "2023.01.17"]
[WhiteClock "0:01:16"]
[BlackClock "0:01:34"]

1. d4 {[%clk 0:02:55]}  d5 {[%clk 0:02:58]} 2. Bg5 {[%clk 0:02:52]}  Nd7 {[%clk 0:02:53]} 3. c4 {[%clk 0:02:51]}  dxc4 {[%clk 0:02:52]} 4. Nc3 {[%clk 0:02:46]}  Ngf6 {[%clk 0:02:51]} 5. e4 {[%clk 0:02:46]}  h6 {[%clk 0:02:50]} 6. Bh4 {[%clk 0:02:45]}  e6 {[%clk 0:02:49]} 7. Bxc4 {[%clk 0:02:44]}  Be7 {[%clk 0:02:48]} 8. e5 {[%clk 0:02:37]}  Nd5 {[%clk 0:02:47]} 9. Bxe7 {[%clk 0:02:32]}  Nxe7 {[%clk 0:02:46]} 10. Qg4 {[%clk 0:02:26]}  Nf5 {[%clk 0:02:42]} 11. Nf3 {[%clk 0:02:26]}  Nb6 {[%clk 0:02:40]} 12. Bd3 {[%clk 0:02:21]}  g6 {[%clk 0:02:38]} 13. O-O-O {[%clk 0:02:17]}  Nd5 {[%clk 0:02:36]} 14. Ne4 {[%clk 0:02:07]}  b6 {[%clk 0:02:29]} 15. Bc4 {[%clk 0:01:57]}  Kf8 {[%clk 0:02:24]} 16. h4 {[%clk 0:01:50]}  h5 {[%clk 0:02:21]} 17. Qg5 {[%clk 0:01:49]}  Kg7 {[%clk 0:02:14]} 18. Bxd5 {[%clk 0:01:42]}  exd5 {[%clk 0:02:02]} 19. Nf6 {[%clk 0:01:28]}  Be6 {[%clk 0:01:49]} 20. Rdg1 {[%clk 0:01:27]}  c5 {[%clk 0:01:44]} 21. g4 {[%clk 0:01:26]}  Nxd4 {[%clk 0:01:43]} 22. Nxd4 {[%clk 0:01:20]}  cxd4 {[%clk 0:01:43]} 23. gxh5 {[%clk 0:01:19]}  Bf5 {[%clk 0:01:34]} 24. Qxf5 {[%clk 0:01:16]} 1-0


[Site "https://www.chess.com"]

[Event "Titled Tuesday Blitz January 17 Early 2023"]
[White "Shuvalova, Polina"]
[Black "Houska, Jovanka"]
[WhiteFideId "24171760"]
[BlackFideId "405094"]
[WhiteElo "2484"]
[BlackElo "2338"]
[Result "1-0"]
[Round "01"]
[TimeControl "180+2"]
[Date "2023.01.17"]
[WhiteClock "0:00:38"]
[BlackClock "0:00:13"]

1. d4 {[%clk 0:02:58]}  d5 {[%clk 0:02:59]} 2. Nf3 {[%clk 0:02:57]}  Nf6 {[%clk 0:02:58]} 3. Bf4 {[%clk 0:02:57]}  c5 {[%clk 0:02:57]} 4. e3 {[%clk 0:02:56]}  Nc6 {[%clk 0:02:54]} 5. Nbd2 {[%clk 0:02:55]}  Qb6 {[%clk 0:02:53]} 6. dxc5 {[%clk 0:02:54]}  Qxb2 {[%clk 0:02:46]} 7. Rb1 {[%clk 0:02:54]}  Qc3 {[%clk 0:02:43]} 8. Bb5 {[%clk 0:02:54]}  Bd7 {[%clk 0:02:36]} 9. O-O {[%clk 0:02:47]}  e6 {[%clk 0:02:22]} 10. Nb3 {[%clk 0:02:18]}  Bxc5 {[%clk 0:01:14]} 11. Bxc6 {[%clk 0:02:14]}  Bxc6 {[%clk 0:01:10]} 12. Be5 {[%clk 0:02:14]}  Qb4 {[%clk 0:01:09]} 13. Nfd4 {[%clk 0:01:29]}  Bxd4 {[%clk 0:01:06]} 14. Nxd4 {[%clk 0:01:27]}  Qe7 {[%clk 0:01:06]} 15. Qf3 {[%clk 0:01:15]}  O-O {[%clk 0:01:04]} 16. Qg3 {[%clk 0:01:15]}  Rfd8 {[%clk 0:01:01]} 17. f4 {[%clk 0:01:02]}  Ne8 {[%clk 0:00:46]} 18. f5 {[%clk 0:00:50]}  f6 {[%clk 0:00:46]} 19. fxe6 {[%clk 0:00:42]}  fxe5 {[%clk 0:00:44]} 20. Rf7 {[%clk 0:00:42]}  Qc5 {[%clk 0:00:34]} 21. Nf5 {[%clk 0:00:42]}  g6 {[%clk 0:00:19]} 22. Qh4 {[%clk 0:00:39]}  h5 {[%clk 0:00:17]} 23. Qg5 {[%clk 0:00:38]}  Ng7 {[%clk 0:00:13]} 24. Qxg6 {[%clk 0:00:38]} 1-0


[Site "https://www.chess.com"]

[Event "Titled Tuesday Blitz January 17 Early 2023"]
[White "Petrova, Irina"]
[Black "Dehtiarov, Roman"]
[WhiteFideId "14124122"]
[BlackFideId "14186640"]
[WhiteElo "2108"]
[BlackElo "2289"]
[Result "0-1"]
[Round "01"]
[TimeControl "180+2"]
[Date "2023.01.17"]
[WhiteClock "0:00:16"]
[BlackClock "0:00:32"]

1. e4 {[%clk 0:03:00]}  e5 {[%clk 0:02:57]} 2. Nf3 {[%clk 0:02:57]}  Nc6 {[%clk 0:02:57]} 3. Bb5 {[%clk 0:02:57]}  a6 {[%clk 0:02:57]} 4. Ba4 {[%clk 0:02:56]}  Nf6 {[%clk 0:02:57]} 5. Bxc6 {[%clk 0:02:55]}  dxc6 {[%clk 0:02:58]} 6. d3 {[%clk 0:02:56]}  Bd6 {[%clk 0:02:57]} 7. Nbd2 {[%clk 0:02:54]}  O-O {[%clk 0:02:57]} 8. b3 {[%clk 0:02:54]}  c5 {[%clk 0:02:57]} 9. Bb2 {[%clk 0:02:54]}  Nd7 {[%clk 0:02:58]} 10. Nc4 {[%clk 0:02:52]}  f6 {[%clk 0:02:58]} 11. Nh4 {[%clk 0:02:46]}  Nb8 {[%clk 0:02:58]} 12. Ne3 {[%clk 0:02:45]}  Nc6 {[%clk 0:02:57]} 13. O-O {[%clk 0:02:22]}  Be6 {[%clk 0:02:48]} 14. Nef5 {[%clk 0:02:05]}  Qd7 {[%clk 0:02:47]} 15. Qf3 {[%clk 0:01:43]}  g6 {[%clk 0:02:23]} 16. Ne3 {[%clk 0:01:38]}  Nd4 {[%clk 0:02:14]} 17. Bxd4 {[%clk 0:01:31]}  cxd4 {[%clk 0:02:15]} 18. Nc4 {[%clk 0:01:30]}  Be7 {[%clk 0:02:09]} 19. Qg3 {[%clk 0:01:25]}  Kh8 {[%clk 0:01:51]} 20. f4 {[%clk 0:00:54]}  exf4 {[%clk 0:01:22]} 21. Nxg6+ {[%clk 0:00:54]}  hxg6 {[%clk 0:01:20]} 22. Qxg6 {[%clk 0:00:55]}  Rf7 {[%clk 0:01:05]} 23. Rxf4 {[%clk 0:00:49]}  Rh7 {[%clk 0:01:00]} 24. Raf1 {[%clk 0:00:41]}  Rg8 {[%clk 0:00:48]} 25. Qxh7+ {[%clk 0:00:15]}  Kxh7 {[%clk 0:00:41]} 26. Rh4+ {[%clk 0:00:16]}  Kg7 {[%clk 0:00:41]} 27. Rf3 {[%clk 0:00:17]}  Kf8 {[%clk 0:00:38]} 28. Ne5 {[%clk 0:00:16]}  Qd6 {[%clk 0:00:32]} 0-1


[Site "https://www.chess.com"]

[Event "Titled Tuesday Blitz January 17 Early 2023"]
[White "Klose, Eli"]
[Black "Mrudul Dehankar"]
[WhiteFideId "16242955"]
[BlackFideId "25096990"]
[WhiteElo "1519"]
[BlackElo "2030"]
[Result "1-0"]
[Round "01"]
[TimeControl "180+2"]
[Date "2023.01.17"]
[WhiteClock "0:00:18"]
[BlackClock "0:00:06"]

1. e4 {[%clk 0:03:00]}  c6 {[%clk 0:02:58]} 2. Nc3 {[%clk 0:02:50]}  d5 {[%clk 0:02:57]} 3. g3 {[%clk 0:02:51]}  dxe4 {[%clk 0:02:54]} 4. Nxe4 {[%clk 0:02:36]}  Bf5 {[%clk 0:02:52]} 5. Bg2 {[%clk 0:02:35]}  e6 {[%clk 0:02:40]} 6. Ne2 {[%clk 0:02:35]}  Nd7 {[%clk 0:02:39]} 7. O-O {[%clk 0:02:32]}  Ngf6 {[%clk 0:02:39]} 8. N2c3 {[%clk 0:02:28]}  Nc5 {[%clk 0:01:58]} 9. Nxf6+ {[%clk 0:02:23]}  Qxf6 {[%clk 0:01:57]} 10. d4 {[%clk 0:02:23]}  O-O-O {[%clk 0:01:53]} 11. Be3 {[%clk 0:02:23]}  e5 {[%clk 0:01:16]} 12. dxe5 {[%clk 0:02:16]}  Qxe5 {[%clk 0:01:05]} 13. Qe2 {[%clk 0:02:09]}  Bd6 {[%clk 0:00:58]} 14. Rad1 {[%clk 0:02:00]}  Rhe8 {[%clk 0:00:57]} 15. Rfe1 {[%clk 0:02:00]}  Qf6 {[%clk 0:00:55]} 16. Qc4 {[%clk 0:01:36]}  Be6 {[%clk 0:00:46]} 17. Qd4 {[%clk 0:01:29]}  Qg6 {[%clk 0:00:35]} 18. Qh4 {[%clk 0:01:12]}  Bf5 {[%clk 0:00:14]} 19. Rc1 {[%clk 0:00:42]}  Bxc2 {[%clk 0:00:10]} 20. Re2 {[%clk 0:00:20]}  Bd3 {[%clk 0:00:09]} 21. Rd2 {[%clk 0:00:19]}  Be4 {[%clk 0:00:06]} 22. b4 {[%clk 0:00:18]} 1-0


[Site "https://www.chess.com"]

[Event "Titled Tuesday Blitz January 17 Early 2023"]
[White "Gabdrakhmanov, Azat"]
[Black "Manon-og, Ramon Jr."]
[WhiteFideId "34189197"]
[BlackFideId "5200776"]
[WhiteElo "2316"]
[BlackElo "1999"]
[Result "1-0"]
[Round "01"]
[TimeControl "180+2"]
[Date "2023.01.17"]
[WhiteClock "0:00:41"]
[BlackClock "0:00:07"]

1. e4 {[%clk 0:02:59]}  c5 {[%clk 0:02:57]} 2. Nf3 {[%clk 0:02:59]}  d6 {[%clk 0:02:57]} 3. d3 {[%clk 0:02:59]}  Nc6 {[%clk 0:02:56]} 4. Nbd2 {[%clk 0:02:59]}  e5 {[%clk 0:02:57]} 5. c3 {[%clk 0:02:59]}  Be7 {[%clk 0:02:57]} 6. Be2 {[%clk 0:02:59]}  Nf6 {[%clk 0:02:57]} 7. O-O {[%clk 0:03:00]}  O-O {[%clk 0:02:58]} 8. Re1 {[%clk 0:03:00]}  Bg4 {[%clk 0:02:58]} 9. h3 {[%clk 0:02:59]}  Bh5 {[%clk 0:02:58]} 10. Nf1 {[%clk 0:02:58]}  Qd7 {[%clk 0:02:48]} 11. Ng3 {[%clk 0:02:57]}  Bg6 {[%clk 0:02:47]} 12. Nh4 {[%clk 0:02:53]}  d5 {[%clk 0:02:45]} 13. Nxg6 {[%clk 0:02:47]}  hxg6 {[%clk 0:02:44]} 14. exd5 {[%clk 0:02:47]}  Nxd5 {[%clk 0:02:44]} 15. Bf3 {[%clk 0:02:48]}  Rad8 {[%clk 0:02:40]} 16. Qb3 {[%clk 0:02:46]}  Nf4 {[%clk 0:02:34]} 17. Bxf4 {[%clk 0:02:36]}  exf4 {[%clk 0:02:35]} 18. Bxc6 {[%clk 0:02:15]}  Qxc6 {[%clk 0:02:26]} 19. Rxe7 {[%clk 0:02:06]}  fxg3 {[%clk 0:02:25]} 20. fxg3 {[%clk 0:02:06]}  Rxd3 {[%clk 0:02:24]} 21. Qxb7 {[%clk 0:02:05]}  Qd6 {[%clk 0:02:14]} 22. Rf1 {[%clk 0:02:00]}  Qxg3 {[%clk 0:01:42]} 23. Rexf7 {[%clk 0:01:42]}  Rxf7 {[%clk 0:01:41]} 24. Qxf7+ {[%clk 0:01:37]}  Kh7 {[%clk 0:01:41]} 25. Qf4 {[%clk 0:01:32]}  Qxf4 {[%clk 0:01:12]} 26. Rxf4 {[%clk 0:01:33]}  Rd1+ {[%clk 0:01:12]} 27. Rf1 {[%clk 0:01:31]}  Rd2 {[%clk 0:01:12]} 28. Rf2 {[%clk 0:01:31]}  Rd1+ {[%clk 0:01:12]} 29. Kh2 {[%clk 0:01:30]}  c4 {[%clk 0:01:12]} 30. Rf4 {[%clk 0:01:25]}  Rd2 {[%clk 0:01:12]} 31. Rxc4 {[%clk 0:01:25]}  Rxb2 {[%clk 0:01:12]} 32. a4 {[%clk 0:01:24]}  Ra2 {[%clk 0:01:01]} 33. Kg3 {[%clk 0:01:20]}  a6 {[%clk 0:00:48]} 34. Kf3 {[%clk 0:01:19]}  a5 {[%clk 0:00:46]} 35. h4 {[%clk 0:01:16]}  Ra1 {[%clk 0:00:44]} 36. g4 {[%clk 0:01:16]}  Rh1 {[%clk 0:00:42]} 37. g5 {[%clk 0:01:15]}  Rh2 {[%clk 0:00:37]} 38. Ke3 {[%clk 0:01:12]}  Rh3+ {[%clk 0:00:36]} 39. Kd2 {[%clk 0:01:11]}  Rh1 {[%clk 0:00:31]} 40. Rf4 {[%clk 0:01:08]}  Ra1 {[%clk 0:00:28]} 41. Kc2 {[%clk 0:01:08]}  Rh1 {[%clk 0:00:26]} 42. Kb3 {[%clk 0:01:08]}  Ra1 {[%clk 0:00:26]} 43. Rf2 {[%clk 0:01:00]}  Rh1 {[%clk 0:00:25]} 44. Kc4 {[%clk 0:00:55]}  Rxh4+ {[%clk 0:00:25]} 45. Kb5 {[%clk 0:00:55]}  Rg4 {[%clk 0:00:18]} 46. Kxa5 {[%clk 0:00:55]}  Rxg5+ {[%clk 0:00:19]} 47. Kb6 {[%clk 0:00:55]}  Rg4 {[%clk 0:00:18]} 48. a5 {[%clk 0:00:54]}  Rc4 {[%clk 0:00:19]} 49. Rf3 {[%clk 0:00:52]}  g5 {[%clk 0:00:19]} 50. a6 {[%clk 0:00:52]}  g4 {[%clk 0:00:20]} 51. Rg3 {[%clk 0:00:50]}  Kg6 {[%clk 0:00:20]} 52. a7 {[%clk 0:00:50]}  Ra4 {[%clk 0:00:19]} 53. Rxg4+ {[%clk 0:00:49]}  Rxg4 {[%clk 0:00:18]} 54. a8=Q {[%clk 0:00:49]}  Rf4 {[%clk 0:00:16]} 55. Qd5 {[%clk 0:00:47]}  Rf6+ {[%clk 0:00:17]} 56. Kb7 {[%clk 0:00:46]}  Rf7+ {[%clk 0:00:17]} 57. Kc8 {[%clk 0:00:43]}  Rf8+ {[%clk 0:00:17]} 58. Kd7 {[%clk 0:00:43]}  Rf5 {[%clk 0:00:16]} 59. Qe4 {[%clk 0:00:42]}  Kg5 {[%clk 0:00:13]} 60. c4 {[%clk 0:00:41]}  Rf7+ {[%clk 0:00:13]} 61. Ke6 {[%clk 0:00:41]}  Rf6+ {[%clk 0:00:13]} 62. Ke7 {[%clk 0:00:41]}  g6 {[%clk 0:00:08]} 63. Qg2+ {[%clk 0:00:40]}  Kf5 {[%clk 0:00:07]} 64. Qf3+ {[%clk 0:00:40]}  Kg5 {[%clk 0:00:07]} 65. Qxf6+ {[%clk 0:00:41]} 1-0


[Site "https://www.chess.com"]